fUSD/lending_fUSD_20260421
["ID","MTS","AMOUNT","RATE_DAILY","PERIOD"]
[420926620,1776736245734,-500.0,0.00027396,2]
[420926621,1776736245743,-500.0,0.00027396,2]
[420926622,1776736245754,-500.0,0.00027396,2]
[420926623,1776736245764,-500.0,0.00027396,2]
[420926624,1776736245773,-500.0,0.00027396,2]
[420926625,1776736245783,-449.42630167,0.00027396,2]
[420926626,1776736245793,-500.0,0.00027396,2]
[420926627,1776736245802,-500.0,0.00027396,2]
[420926628,1776736245811,-500.0,0.00027396,2]
[420926629,1776736245821,-500.0,0.00027396,2]
[420926630,1776736245830,-500.0,0.00027396,2]
[420926631,1776736245840,-500.0,0.00027396,2]
[420926632,1776736245849,-500.0,0.00027396,2]
[420926633,1776736245859,-500.0,0.00027396,2]
[420926634,1776736245868,-500.0,0.00027396,2]
[420926635,1776736245877,-500.0,0.00027396,2]
[420926636,1776736245887,-512.64122038,0.00027396,2]
[420926637,1776736245896,-300.0,0.00027396,10]
[420926638,1776736245905,-300.0,0.00027396,10]
[420926639,1776736245915,-300.0,0.00027396,10]
[420926640,1776736245924,-369.80983569,0.00027397,2]
[420926641,1776736245933,-165.59374854,0.00027397,2]
[420926642,1776736245943,-420.35246334,0.00027397,2]
[420926643,1776736245952,-710.46,0.00027397,2]
[420926644,1776736245963,-500.0,0.00027397,2]
[420926645,1776736245972,-1456.96,0.00027397,2]
[420926646,1776736245982,-500.0,0.00027397,2]
[420926647,1776736245991,-500.0,0.00027397,2]
[420926648,1776736246000,-500.0,0.00027397,2]
[420926649,1776736246010,-576.29,0.00027397,2]
[420926650,1776736246020,-500.0,0.00027397,2]
[420926651,1776736246029,-500.0,0.00027397,2]
[420926652,1776736246038,-500.0,0.00027397,2]
[420926653,1776736246047,-1300.61,0.00027397,2]
[420926654,1776736246057,-500.0,0.00027397,2]
[420926655,1776736246066,-1668.42,0.00027397,2]
[420926656,1776736246076,-500.0,0.00027397,2]
[420926657,1776736246085,-977.81,0.00027397,2]
[420926658,1776736246095,-500.0,0.00027397,2]
[420926659,1776736246104,-500.0,0.00027397,2]
[420926660,1776736246113,-205.11070707,0.00027397,2]
[420926661,1776736246123,-500.0,0.00027397,2]
[420926662,1776736246132,-1282.13,0.00027397,2]
[420926663,1776736246142,-500.0,0.00027397,2]
[420926664,1776736246151,-983.47,0.00027397,2]
[420926665,1776736246161,-999.97,0.00027397,2]
[420926666,1776736246171,-500.0,0.00027397,2]
[420926667,1776736246180,-2472.72,0.00027397,2]
[420926668,1776736246189,-500.0,0.00027397,2]
[420926669,1776736246198,-500.0,0.00027397,2]
[420926670,1776736246208,-573.19,0.00027397,2]
[420926671,1776736246217,-1418.53,0.00027397,2]
[420926672,1776736246226,-500.0,0.00027397,2]
[420926673,1776736246235,-777.42,0.00027397,2]
[420926674,1776736246244,-500.0,0.00027397,2]
[420926675,1776736246254,-500.0,0.00027397,2]
[420926676,1776736246263,-2604.88,0.00027397,2]
[420926677,1776736246272,-1253.96,0.00027397,2]
[420926678,1776736246281,-694.07,0.00027397,2]
[420926679,1776736246291,-500.0,0.00027397,2]
[420926680,1776736246300,-500.0,0.00027397,2]
[420926681,1776736246309,-813.14,0.00027397,2]
[420926682,1776736246318,-2143.64,0.00027397,2]
[420926683,1776736246327,-500.0,0.00027397,2]
[420926685,1776736246337,-579.72,0.00027397,2]
[420926686,1776736246346,-2038.48,0.00027397,2]
[420926687,1776736246355,-411.09870529,0.00027397,2]
[420926688,1776736246364,-500.0,0.00027397,2]
[420926689,1776736246372,-1223.03,0.00027397,2]
[420926690,1776736246381,-2643.97,0.00027397,2]
[420926691,1776736246390,-500.0,0.00027397,2]
[420926692,1776736246399,-500.0,0.00027397,2]
[420926693,1776736246408,-500.0,0.00027397,2]
[420926694,1776736246417,-500.0,0.00027397,2]
[420926695,1776736246427,-500.0,0.00027397,2]
[420926696,1776736246435,-500.0,0.00027397,2]
[420926697,1776736246444,-500.0,0.00027397,2]
[420926698,1776736246453,-500.0,0.00027397,2]
[420926699,1776736246462,-509.43,0.00027397,2]
[420926700,1776736246471,-500.0,0.00027397,2]
[420926701,1776736246480,-500.0,0.00027397,2]
[420926702,1776736246489,-653.28,0.00027397,2]
[420926703,1776736246499,-1268.41,0.00027397,2]
[420926706,1776736246901,-563.74,0.00027397,2]
[420926707,1776736246925,-766.56,0.00027397,2]
[420926708,1776736246935,-500.0,0.00027397,2]
[420926709,1776736246945,-500.0,0.00027397,2]
[420926710,1776736246955,-2327.8,0.00027397,2]
[420926711,1776736246965,-924.25,0.00027397,2]
[420926712,1776736246975,-1096.23,0.00027397,2]
[420926713,1776736246984,-500.0,0.00027397,2]
[420926714,1776736246994,-1433.35,0.00027397,2]
[420926715,1776736247004,-844.68,0.00027397,2]
[420926716,1776736247014,-500.0,0.00027397,2]
[420926717,1776736247024,-500.0,0.00027397,2]
[420926718,1776736247033,-3321.91,0.00027397,2]
[420926719,1776736247043,-500.0,0.00027397,2]
[420926720,1776736247052,-500.0,0.00027397,2]
[420926721,1776736247062,-840.34,0.00027397,2]
[420926722,1776736247071,-500.0,0.00027397,2]
[420926723,1776736247080,-500.0,0.00027397,2]
[420926724,1776736247090,-1581.0,0.00027397,2]
[420926725,1776736247100,-500.0,0.00027397,2]
[420926726,1776736247110,-500.0,0.00027397,2]
[420926727,1776736247119,-562.07,0.00027397,2]
[420926728,1776736247129,-500.0,0.00027397,2]
[420926729,1776736247138,-500.0,0.00027397,2]
[420926730,1776736247147,-500.0,0.00027397,2]
[420926731,1776736247156,-1601.4,0.00027397,2]
[420926732,1776736247167,-552.1,0.00027397,2]
[420926733,1776736247177,-500.0,0.00027397,2]
[420926734,1776736247186,-2647.88,0.00027397,2]
[420926735,1776736247196,-500.0,0.00027397,2]
[420926736,1776736247205,-500.0,0.00027397,2]
[420926737,1776736247215,-1448.68,0.00027397,2]
[420926738,1776736247224,-547.06,0.00027397,2]
[420926739,1776736247233,-500.0,0.00027397,2]
[420926740,1776736247243,-500.0,0.00027397,2]
[420926741,1776736247252,-500.0,0.00027397,2]
[420926742,1776736247261,-2999.54,0.00027397,2]
[420926743,1776736247271,-500.0,0.00027397,2]
[420926744,1776736247280,-2969.78,0.00027397,2]
[420926745,1776736247289,-500.0,0.00027397,2]
[420926746,1776736247299,-879.15,0.00027397,2]
[420926747,1776736247308,-500.0,0.00027397,2]
[420926748,1776736247317,-1769.55,0.00027397,2]
[420926749,1776736247326,-500.0,0.00027397,2]
[420926750,1776736247335,-500.0,0.00027397,2]
[420926751,1776736247344,-500.0,0.00027397,2]
[420926752,1776736247354,-500.0,0.00027397,2]
[420926753,1776736247363,-508.26,0.00027397,2]
[420926754,1776736247373,-500.0,0.00027397,2]
[420926755,1776736247382,-500.0,0.00027397,2]
[420926756,1776736247392,-500.0,0.00027397,2]
[420926757,1776736247400,-500.0,0.00027397,2]
[420926758,1776736247410,-500.0,0.00027397,2]
[420926759,1776736247419,-563.55,0.00027397,2]
[420926760,1776736247428,-500.0,0.00027397,2]
[420926761,1776736247437,-500.0,0.00027397,2]
[420926762,1776736247447,-500.0,0.00027397,2]
[420926763,1776736247456,-536.27,0.00027397,2]
[420926764,1776736247466,-500.0,0.00027397,2]
[420926765,1776736247476,-500.0,0.00027397,2]
[420926766,1776736247485,-500.0,0.00027397,2]
[420926767,1776736247494,-969.06,0.00027397,2]
[420926768,1776736247503,-1077.46,0.00027397,2]
[420926769,1776736247513,-500.0,0.00027397,2]
[420926770,1776736247522,-500.0,0.00027397,2]
[420926771,1776736247531,-500.0,0.00027397,2]
[420926772,1776736247541,-1419.55,0.00027397,2]
[420926773,1776736247550,-500.0,0.00027397,2]
[420926774,1776736247560,-1041.12,0.00027397,2]
[420926775,1776736247569,-500.0,0.00027397,2]
[420926776,1776736247579,-500.0,0.00027397,2]
[420926777,1776736247588,-813.38,0.00027397,2]
[420926778,1776736247598,-702.9,0.00027397,2]
[420926779,1776736247607,-500.0,0.00027397,2]
[420926780,1776736247616,-2390.82,0.00027397,2]
[420926781,1776736247626,-832.19,0.00027397,2]
[420926782,1776736247638,-500.0,0.00027397,2]
[420926783,1776736247648,-804.1,0.00027397,2]
[420926784,1776736247657,-2397.94,0.00027397,2]
[420926785,1776736247667,-500.0,0.00027397,2]
[420926786,1776736247677,-1945.28,0.00027397,2]
[420926787,1776736247686,-500.0,0.00027397,2]
[420926788,1776736247696,-500.0,0.00027397,2]
[420926789,1776736247706,-646.2,0.00027397,2]
[420926790,1776736247715,-500.0,0.00027397,2]
[420926791,1776736247724,-1077.72,0.00027397,2]
[420926792,1776736247734,-163.45998802,0.00027397,2]
[420926793,1776736247744,-500.0,0.00027397,2]
[420926794,1776736247753,-500.0,0.00027397,2]
[420926795,1776736247763,-1075.72,0.00027397,2]
[420926796,1776736247772,-500.0,0.00027397,2]
[420926797,1776736247783,-500.0,0.00027397,2]
[420926798,1776736247792,-500.0,0.00027397,2]
[420926799,1776736247802,-500.0,0.00027397,2]
[420926800,1776736247811,-826.79,0.00027397,2]
[420926801,1776736247821,-3707.29,0.00027397,2]
[420926802,1776736247830,-500.0,0.00027397,2]
[420926803,1776736247840,-500.0,0.00027397,2]
[420926804,1776736247849,-500.0,0.00027397,2]
[420926805,1776736247859,-1074.36,0.00027397,2]
[420926806,1776736247868,-531.77,0.00027397,2]
[420926807,1776736247878,-500.0,0.00027397,2]
[420926808,1776736247887,-1039.87,0.00027397,2]
[420926809,1776736247897,-500.0,0.00027397,2]
[420926810,1776736247906,-500.0,0.00027397,2]
[420926811,1776736247916,-500.0,0.00027397,2]
[420926812,1776736247925,-500.0,0.00027397,2]
[420926813,1776736247935,-500.0,0.00027397,2]
[420926814,1776736247945,-500.0,0.00027397,2]
[420926815,1776736247954,-500.0,0.00027397,2]
[420926816,1776736247964,-1211.86,0.00027397,2]
[420926817,1776736247973,-1013.42,0.00027397,2]
[420926818,1776736247983,-502.34,0.00027397,2]
[420926819,1776736247992,-500.0,0.00027397,2]
[420926820,1776736248002,-1541.02,0.00027397,2]
[420926821,1776736248011,-500.0,0.00027397,2]
[420926822,1776736248020,-693.87,0.00027397,2]
[420926823,1776736248030,-992.28,0.00027397,2]
[420926824,1776736248040,-515.46,0.00027397,2]
[420926825,1776736248050,-500.0,0.00027397,2]
[420926826,1776736248059,-936.53,0.00027397,2]
[420926827,1776736248068,-500.0,0.00027397,2]
[420926828,1776736248078,-500.0,0.00027397,2]
[420926829,1776736248087,-683.48,0.00027397,2]
[420926830,1776736248097,-500.0,0.00027397,2]
[420926831,1776736248106,-570.07,0.00027397,2]
[420926832,1776736248115,-2489.59,0.00027397,2]
[420926833,1776736248124,-500.0,0.00027397,2]
[420926834,1776736248134,-500.0,0.00027397,2]
[420926835,1776736248143,-500.0,0.00027397,2]
[420926836,1776736248152,-894.5,0.00027397,2]
[420926837,1776736248162,-620.63,0.00027397,2]
[420926838,1776736248171,-1110.4,0.00027397,2]
[420926839,1776736248180,-500.0,0.00027397,2]
[420926840,1776736248190,-500.0,0.00027397,2]
[420926841,1776736248199,-500.0,0.00027397,2]
[420926842,1776736248209,-500.0,0.00027397,2]
[420926843,1776736248218,-1011.78,0.00027397,2]
[420926844,1776736248227,-500.0,0.00027397,2]
[420926845,1776736248237,-500.0,0.00027397,2]
[420926846,1776736248246,-2223.94,0.00027397,2]
[420926847,1776736248255,-500.0,0.00027397,2]
[420926848,1776736248264,-500.0,0.00027397,2]
[420926849,1776736248274,-500.0,0.00027397,2]
[420926850,1776736248283,-692.83,0.00027397,2]
[420926851,1776736248292,-500.0,0.00027397,2]
[420926852,1776736248302,-500.0,0.00027397,2]
[420926853,1776736248311,-645.16483816,0.00027397,2]
[420926854,1776736248320,-1906.85,0.00027397,2]
[420926855,1776736248330,-500.0,0.00027397,2]
[420926856,1776736248339,-500.0,0.00027397,2]
[420926857,1776736248348,-500.0,0.00027397,2]
[420926858,1776736248357,-500.0,0.00027397,2]
[420926859,1776736248366,-882.93,0.00027397,2]
[420926860,1776736248375,-500.0,0.00027397,2]
[420926861,1776736248384,-500.0,0.00027397,2]
[420926862,1776736248394,-540.93,0.00027397,2]
[420926863,1776736248403,-500.0,0.00027397,2]
[420926864,1776736248412,-830.62,0.00027397,2]
[420926865,1776736248421,-574.22861116,0.00027397,2]
[420926866,1776736248431,-534.54,0.00027397,2]
[420926867,1776736248440,-2424.63,0.00027397,2]
[420926868,1776736248449,-500.0,0.00027397,2]
[420926869,1776736248459,-500.0,0.00027397,2]
[420926870,1776736248468,-500.0,0.00027397,2]
[420926871,1776736248477,-526.90981558,0.00027397,2]
[420926872,1776736248486,-666.5,0.00027397,2]
[420926873,1776736248495,-534.84,0.00027397,2]
[420926874,1776736248506,-1138.05,0.00027397,2]
[420926875,1776736248515,-1161.6,0.00027397,2]
[420926876,1776736248524,-500.0,0.00027397,2]
[420926877,1776736248534,-500.0,0.00027397,2]
[420926878,1776736248543,-635.09,0.00027397,2]
[420926879,1776736248552,-500.0,0.00027397,2]
[420926880,1776736248562,-2195.47,0.00027397,2]
[420926881,1776736248571,-1378.22,0.00027397,2]
[420926882,1776736248580,-501.79,0.00027397,2]
[420926883,1776736248590,-617.78274214,0.00027397,2]
[420926884,1776736248599,-500.0,0.00027397,2]
[420926885,1776736248608,-526.48737354,0.00027397,2]
[420926886,1776736248618,-500.0,0.00027397,2]
[420926887,1776736248627,-500.0,0.00027397,2]
[420926888,1776736248636,-500.0,0.00027397,2]
[420926889,1776736248645,-500.0,0.00027397,2]
[420926890,1776736248655,-500.0,0.00027397,2]
[420926891,1776736248664,-833.38,0.00027397,2]
[420926892,1776736248674,-500.0,0.00027397,2]
[420926893,1776736248683,-1672.29,0.00027397,2]
[420926894,1776736248693,-500.0,0.00027397,2]
[420926895,1776736248703,-500.0,0.00027397,2]
[420926896,1776736248712,-705.27,0.00027397,2]
[420926897,1776736248723,-1444.44,0.00027397,2]
[420926898,1776736248732,-3193.52,0.00027397,2]
[420926899,1776736248741,-508.12,0.00027397,2]
[420926900,1776736248751,-500.0,0.00027397,2]
[420926901,1776736248761,-500.0,0.00027397,2]
[420926902,1776736248771,-1508.06,0.00027397,2]
[420926903,1776736248781,-550.35,0.00027397,2]
[420926904,1776736248790,-500.0,0.00027397,2]
[420926905,1776736248800,-500.0,0.00027397,2]
[420926906,1776736248810,-1109.81,0.00027397,2]
[420926907,1776736248819,-500.0,0.00027397,2]
[420926908,1776736248828,-500.0,0.00027397,2]
[420926909,1776736248838,-952.01,0.00027397,2]
[420926910,1776736248847,-1418.43,0.00027397,2]
[420926911,1776736248856,-692.5,0.00027397,2]
[420926912,1776736248866,-500.0,0.00027397,2]
[420926913,1776736248875,-947.69,0.00027397,2]
[420926914,1776736248884,-665.26,0.00027397,2]
[420926915,1776736248894,-500.0,0.00027397,2]
[420926916,1776736248904,-907.59,0.00027397,2]
[420926917,1776736248914,-695.3,0.00027397,2]
[420926918,1776736248923,-1180.06,0.00027397,2]
[420926919,1776736248933,-747.19,0.00027397,2]
[420926920,1776736248943,-881.0,0.00027397,2]
[420926921,1776736248952,-1147.62,0.00027397,2]
[420926922,1776736248961,-871.29,0.00027397,2]
[420926923,1776736248971,-500.0,0.00027397,2]
[420926924,1776736248980,-500.0,0.00027397,2]
[420926925,1776736248989,-1720.08,0.00027397,2]
[420926926,1776736248998,-500.0,0.00027397,2]
[420926927,1776736249008,-751.42,0.00027397,2]
[420926928,1776736249016,-3678.71,0.00027397,2]
[420926929,1776736249026,-520.09,0.00027397,2]
[420926930,1776736249035,-880.95,0.00027397,2]
[420926931,1776736249044,-664.86,0.00027397,2]
[420926932,1776736249054,-1360.35,0.00027397,2]
[420926933,1776736249063,-1067.67,0.00027397,2]
[420926934,1776736249073,-710.51,0.00027397,2]
[420926935,1776736249082,-500.0,0.00027397,2]
[420926936,1776736249092,-500.0,0.00027397,2]
[420926937,1776736249101,-500.0,0.00027397,2]
[420926938,1776736249110,-2227.03,0.00027397,2]
[420926939,1776736249119,-500.0,0.00027397,2]
[420926940,1776736249129,-678.67,0.00027397,2]
[420926941,1776736249138,-500.0,0.00027397,2]
[420926942,1776736249147,-824.9,0.00027397,2]
[420926943,1776736249156,-500.0,0.00027397,2]
[420926944,1776736249165,-500.0,0.00027397,2]
[420926945,1776736249175,-500.0,0.00027397,2]
[420926946,1776736249184,-500.0,0.00027397,2]
[420926947,1776736249193,-500.0,0.00027397,2]
[420926948,1776736249203,-3136.89,0.00027397,2]
[420926949,1776736249212,-2772.98,0.00027397,2]
[420926950,1776736249221,-1099.26,0.00027397,2]
[420926951,1776736249230,-829.12,0.00027397,2]
[420926952,1776736249239,-642.63655642,0.00027397,2]
[420926953,1776736249249,-2328.37,0.00027397,2]
[420926954,1776736249259,-965.51,0.00027397,2]
[420926955,1776736249268,-577.18,0.00027397,2]
[420926956,1776736249277,-1339.67,0.00027397,2]
[420926957,1776736249286,-500.0,0.00027397,2]
[420926958,1776736249295,-500.0,0.00027397,2]
[420926959,1776736249305,-500.0,0.00027397,2]
[420926960,1776736249314,-500.0,0.00027397,2]
[420926961,1776736249323,-723.03,0.00027397,2]
[420926962,1776736249332,-1730.08,0.00027397,2]
[420926963,1776736249341,-500.0,0.00027397,2]
[420926964,1776736249350,-500.0,0.00027397,2]
[420926965,1776736249359,-500.0,0.00027397,2]
[420926966,1776736249368,-500.0,0.00027397,2]
[420926967,1776736249377,-2970.64,0.00027397,2]
[420926968,1776736249386,-1445.42,0.00027397,2]
[420926969,1776736249396,-593.73,0.00027397,2]
[420926970,1776736249405,-500.0,0.00027397,2]
[420926971,1776736249414,-500.0,0.00027397,2]
[420926972,1776736249424,-766.05,0.00027397,2]
[420926973,1776736249433,-1261.66,0.00027397,2]
[420926974,1776736249442,-988.59,0.00027397,2]
[420926975,1776736249451,-500.0,0.00027397,2]
[420926976,1776736249460,-500.0,0.00027397,2]
[420926977,1776736249469,-500.0,0.00027397,2]
[420926978,1776736249479,-1245.6,0.00027397,2]
[420926979,1776736249488,-500.0,0.00027397,2]
[420926980,1776736249497,-1624.45,0.00027397,2]
[420926981,1776736249506,-500.0,0.00027397,2]
[420926982,1776736249515,-500.0,0.00027397,2]
[420926983,1776736249524,-737.74,0.00027397,2]
[420926984,1776736249533,-500.0,0.00027397,2]
[420926985,1776736249543,-500.0,0.00027397,2]
[420926986,1776736249552,-4096.28,0.00027397,2]
[420926987,1776736249562,-500.0,0.00027397,2]
[420926988,1776736249571,-500.0,0.00027397,2]
[420926989,1776736249580,-500.0,0.00027397,2]
[420926990,1776736249589,-1100.03,0.00027397,2]
[420926991,1776736249599,-500.0,0.00027397,2]
[420926992,1776736249608,-705.55,0.00027397,2]
[420926993,1776736249617,-500.0,0.00027397,2]
[420926994,1776736249627,-500.0,0.00027397,2]
[420926995,1776736249637,-662.36,0.00027397,2]
[420926996,1776736249646,-518.26,0.00027397,2]
[420926997,1776736249656,-1382.88,0.00027397,2]
[420926998,1776736249665,-500.0,0.00027397,2]
[420926999,1776736249675,-500.0,0.00027397,2]
[420927000,1776736249684,-843.31,0.00027397,2]
[420927001,1776736249693,-673.61,0.00027397,2]
[420927002,1776736249703,-500.0,0.00027397,2]
[420927003,1776736249712,-500.0,0.00027397,2]
[420927004,1776736249722,-500.0,0.00027397,2]
[420927005,1776736249731,-500.0,0.00027397,2]
[420927006,1776736249741,-500.0,0.00027397,2]
[420927007,1776736249751,-500.0,0.00027397,2]
[420927008,1776736249761,-500.0,0.00027397,2]
[420927009,1776736249771,-666.68,0.00027397,2]
[420927010,1776736249781,-520.0,0.00027397,2]
[420927011,1776736249790,-500.0,0.00027397,2]
[420927012,1776736249800,-621.26,0.00027397,2]
[420927013,1776736249810,-500.0,0.00027397,2]
[420927014,1776736249819,-500.0,0.00027397,2]
[420927015,1776736249828,-2689.92,0.00027397,2]
[420927016,1776736249838,-529.75,0.00027397,2]
[420927017,1776736249847,-500.0,0.00027397,2]
[420927018,1776736249857,-500.0,0.00027397,2]
[420927019,1776736249867,-500.0,0.00027397,2]
[420927020,1776736249876,-500.0,0.00027397,2]
[420927021,1776736249885,-622.15854603,0.00027397,2]
[420927022,1776736249894,-722.08,0.00027397,2]
[420927023,1776736249904,-500.0,0.00027397,2]
[420927024,1776736249913,-500.0,0.00027397,2]
[420927025,1776736249923,-500.0,0.00027397,2]
[420927026,1776736249933,-500.0,0.00027397,2]
[420927027,1776736249945,-500.0,0.00027397,2]
[420927028,1776736249954,-500.0,0.00027397,2]
[420927029,1776736249963,-2514.99,0.00027397,2]
[420927030,1776736249972,-500.0,0.00027397,2]
[420927031,1776736249982,-500.0,0.00027397,2]
[420927032,1776736249991,-1372.04,0.00027397,2]
[420927033,1776736250001,-500.0,0.00027397,2]
[420927034,1776736250011,-587.21373125,0.00027397,2]
[420927035,1776736250020,-500.0,0.00027397,2]
[420927036,1776736250030,-3607.71,0.00027397,2]
[420927037,1776736250039,-701.05,0.00027397,2]
[420927038,1776736250048,-500.0,0.00027397,2]
[420927039,1776736250058,-500.0,0.00027397,2]
[420927040,1776736250067,-500.0,0.00027397,2]
[420927041,1776736250076,-500.0,0.00027397,2]
[420927042,1776736250085,-524.08,0.00027397,2]
[420927043,1776736250095,-522.84,0.00027397,2]
[420927044,1776736250105,-500.0,0.00027397,2]
[420927045,1776736250114,-1954.15,0.00027397,2]
[420927046,1776736250124,-1091.86,0.00027397,2]
[420927047,1776736250133,-2130.33,0.00027397,2]
[420927048,1776736250142,-815.93,0.00027397,2]
[420927049,1776736250152,-500.0,0.00027397,2]
[420927050,1776736250161,-500.0,0.00027397,2]
[420927051,1776736250170,-1656.24,0.00027397,2]
[420927052,1776736250180,-500.0,0.00027397,2]
[420927053,1776736250189,-1021.2,0.00027397,2]
[420927054,1776736250198,-500.0,0.00027397,2]
[420927055,1776736250207,-3130.4,0.00027397,2]
[420927056,1776736250217,-2403.76,0.00027397,2]
[420927057,1776736250226,-1259.28,0.00027397,2]
[420927058,1776736250235,-683.19,0.00027397,2]
[420927059,1776736250245,-1341.12,0.00027397,2]
[420927060,1776736250254,-500.0,0.00027397,2]
[420927061,1776736250263,-1679.32,0.00027397,2]
[420927062,1776736250273,-1684.47,0.00027397,2]
[420927063,1776736250282,-500.0,0.00027397,2]
[420927064,1776736250292,-500.0,0.00027397,2]
[420927065,1776736250301,-500.0,0.00027397,2]
[420927066,1776736250311,-1395.47,0.00027397,2]
[420927067,1776736250320,-4037.18,0.00027397,2]
[420927068,1776736250329,-1243.95,0.00027397,2]
[420927069,1776736250339,-500.0,0.00027397,2]
[420927070,1776736250348,-500.0,0.00027397,2]
[420927071,1776736250357,-1030.58,0.00027397,2]
[420927072,1776736250367,-4289.86,0.00027397,2]
[420927073,1776736250376,-1530.09,0.00027397,2]
[420927074,1776736250385,-500.0,0.00027397,2]
[420927075,1776736250395,-3669.89,0.00027397,2]
[420927076,1776736250404,-500.0,0.00027397,2]
[420927077,1776736250413,-628.37907168,0.00027397,2]
[420927078,1776736250422,-500.0,0.00027397,2]
[420927079,1776736250431,-515.25303054,0.00027397,2]
[420927080,1776736250441,-500.0,0.00027397,2]
[420927081,1776736250450,-500.0,0.00027397,2]
[420927082,1776736250460,-500.0,0.00027397,2]
[420927083,1776736250469,-500.0,0.00027397,2]
[420927084,1776736250478,-1377.54,0.00027397,2]
[420927085,1776736250487,-971.47,0.00027397,2]
[420927086,1776736250496,-2448.57,0.00027397,2]
[420927087,1776736250506,-2936.11,0.00027397,2]
[420927088,1776736250515,-500.0,0.00027397,2]
[420927089,1776736250524,-500.0,0.00027397,2]
[420927090,1776736250533,-500.0,0.00027397,2]
[420927091,1776736250542,-579.89581509,0.00027397,2]
[420927092,1776736250551,-2023.6,0.00027397,2]
[420927093,1776736250561,-1493.68,0.00027397,2]
[420927094,1776736250571,-500.0,0.00027397,2]
[420927095,1776736250580,-3714.08,0.00027397,2]
[420927096,1776736250589,-518.59427551,0.00027397,2]
[420927097,1776736250599,-500.0,0.00027397,2]
[420927098,1776736250608,-500.0,0.00027397,2]
[420927099,1776736250618,-1431.67,0.00027397,2]
[420927100,1776736250627,-500.0,0.00027397,2]
[420927101,1776736250636,-500.0,0.00027397,2]
[420927102,1776736250645,-4497.85,0.00027397,2]
[420927103,1776736250654,-646.34,0.00027397,2]
[420927104,1776736250663,-577.69,0.00027397,2]
[420927105,1776736250674,-500.0,0.00027397,2]
[420927106,1776736250683,-500.0,0.00027397,2]
[420927107,1776736250692,-1266.91,0.00027397,2]
[420927108,1776736250701,-500.0,0.00027397,2]
[420927109,1776736250711,-555.72,0.00027397,2]
[420927110,1776736250720,-500.0,0.00027397,2]
[420927111,1776736250730,-819.05,0.00027397,2]
[420927112,1776736250739,-3984.23,0.00027397,2]
[420927113,1776736250749,-1189.38,0.00027397,2]
[420927114,1776736250759,-688.71,0.00027397,2]
[420927115,1776736250768,-1088.62,0.00027397,2]
[420927116,1776736250778,-647.34,0.00027397,2]
[420927117,1776736250788,-1703.44,0.00027397,2]
[420927118,1776736250797,-500.0,0.00027397,2]
[420927119,1776736250807,-794.33,0.00027397,2]
[420927120,1776736250816,-1631.57,0.00027397,2]
[420927121,1776736250825,-1005.2,0.00027397,2]
[420927122,1776736250835,-500.0,0.00027397,2]